bitfinex/quotes_BTCUSD_20251201
["timestamp","ask_amount","ask_price","bid_price","bid_amount"]
[1764589254736,0.23106428,86556.0,86555.0,0.06252299]
[1764589255973,0.23106428,86556.0,86555.0,0.06652299]
[1764589256305,0.05210789,86556.0,86555.0,0.06652299]
[1764589256552,0.05210789,86556.0,86555.0,0.18010881]
[1764589256891,0.08684396,86556.0,86555.0,0.18010881]
[1764589259160,0.6326958,86556.0,86555.0,0.18010881]
[1764589259360,2.6326958,86556.0,86555.0,0.18010881]
[1764589259762,2.6326958,86556.0,86555.0,0.17610881]
[1764589260134,2.5352458,86556.0,86555.0,0.17610881]
[1764589260330,2.4901558,86556.0,86555.0,0.17610881]
[1764589260774,2.40984396,86556.0,86555.0,0.24240881]
[1764589260984,2.40984396,86556.0,86555.0,0.33575881]
[1764589261195,0.40984396,86556.0,86555.0,0.33575881]
[1764589261392,2.40984396,86556.0,86555.0,0.33875881]
[1764589261836,2.50781011,86556.0,86555.0,0.17610881]
[1764589261993,2.65001011,86556.0,86555.0,0.17910881]
[1764589262411,2.57076011,86556.0,86555.0,0.17910881]
[1764589262589,2.40984396,86556.0,86555.0,0.17910881]
[1764589263685,2.47279396,86556.0,86555.0,0.11658582]
[1764589263834,2.55204396,86556.0,86555.0,0.11658582]
[1764589265215,2.57679094,86556.0,86555.0,0.11658582]
[1764589265395,2.6920169,86556.0,86555.0,0.11658582]
[1764589265772,2.6920169,86556.0,86555.0,0.11358582]
[1764589266172,2.6920169,86556.0,86555.0,0.11458582]
[1764589267116,2.57679094,86556.0,86555.0,0.11458582]
[1764589267409,2.57679094,86556.0,86555.0,0.11358582]
[1764589267585,2.57679094,86556.0,86555.0,0.11458582]
[1764589267586,2.11159094,86556.0,86555.0,0.11458582]
[1764589267986,2.43459094,86556.0,86555.0,0.11358582]
[1764589268187,2.43560878,86556.0,86555.0,0.11358582]
[1764589268396,2.43660878,86556.0,86555.0,0.11358582]
[1764589268602,2.55183474,86556.0,86555.0,0.11358582]
[1764589271093,2.47210261,86556.0,86555.0,0.11358582]
[1764589271278,2.50684161,86556.0,86555.0,0.11358582]
[1764589273823,2.53164947,86556.0,86555.0,0.11358582]
[1764589275596,2.67366947,86556.0,86555.0,0.11358582]
[1764589276127,2.70460958,86556.0,86555.0,0.11358582]
[1764589276325,2.70460958,86556.0,86543.0,0.00036766]
[1764589276326,2.47013465,86544.0,86543.0,0.00036766]
[1764589276549,2.49591251,86544.0,86543.0,0.00036766]
[1764589276748,2.59336251,86544.0,86543.0,0.00036766]
[1764589276969,2.62811008,86544.0,86543.0,0.00036766]
[1764589277185,2.74333604,86544.0,86543.0,0.00036766]
[1764589277798,2.74333604,86544.0,86543.0,0.00236766]
[1764589278606,2.74333604,86544.0,86543.0,0.00036766]
[1764589279055,2.77434164,86544.0,86543.0,0.00136766]
[1764589279261,2.74333604,86544.0,86543.0,0.00136766]
[1764589279505,2.77429889,86544.0,86543.0,0.00136766]
[1764589280080,2.77429889,86544.0,86543.0,0.00036766]
[1764589280081,2.74333604,86544.0,86543.0,0.00036766]
[1764589280541,2.74433604,86544.0,86543.0,0.00136766]
[1764589280724,2.74433604,86544.0,86543.0,0.00036766]
[1764589280933,2.63011008,86544.0,86543.0,0.00036766]
[1764589289951,2.69206883,86544.0,86543.0,0.00036766]
[1764589290113,2.63011008,86544.0,86543.0,0.00036766]
[1764589290445,2.55085402,86533.0,86532.0,0.09395348]
[1764589290655,2.66514188,86533.0,86532.0,0.09395348]
[1764589290858,2.78036784,86533.0,86532.0,0.09395348]
[1764589291071,2.79031166,86533.0,86532.0,0.09395348]
[1764589291628,2.81504226,86533.0,86532.0,0.09395348]
[1764589292028,2.79031166,86533.0,86532.0,0.09395348]
[1764589292451,2.81504385,86533.0,86532.0,0.09395348]
[1764589292648,2.81504385,86533.0,86532.0,0.09495348]
[1764589293860,2.81504385,86533.0,86532.0,0.09395348]
[1764589294279,2.81504385,86533.0,86532.0,0.09495348]
[1764589294855,2.69981789,86533.0,86532.0,0.09495348]
[1764589295060,2.69981789,86533.0,86532.0,0.001]
[1764589296104,2.69981789,86533.0,86532.0,0.00134947]
[1764589298676,2.78377956,86533.0,86532.0,0.00134947]
[1764589305319,2.69429956,86533.0,86532.0,0.00134947]
[1764589305500,2.89900552,86533.0,86532.0,0.00134947]
[1764589306627,2.78377956,86533.0,86532.0,0.00134947]
[1764589311231,2.82499723,86533.0,86532.0,0.00134947]
[1764589311638,2.78377956,86533.0,86532.0,0.00134947]
[1764589313884,2.55414973,86524.0,86523.0,0.09395348]
[1764589314088,2.55415775,86521.0,86520.0,0.0004]
[1764589314290,2.69995994,86521.0,86520.0,0.0004]
[1764589314492,2.73471762,86521.0,86520.0,0.0004]
[1764589314733,2.73471762,86521.0,86520.0,0.00078132]
[1764589315537,2.73471762,86521.0,86520.0,0.00378132]
[1764589315739,2.84994358,86521.0,86520.0,0.00378132]
[1764589320286,2.84928045,86521.0,86520.0,0.00378132]
[1764589323544,2.91134857,86521.0,86520.0,0.00378132]
[1764589323762,2.84928045,86521.0,86520.0,0.00378132]
[1764589324174,2.84928045,86521.0,86520.0,0.00078132]
[1764589324373,2.61298449,86521.0,86520.0,0.00078132]
[1764589324578,2.79671126,86521.0,86520.0,0.00178132]
[1764589324753,2.79671126,86521.0,86520.0,0.00078132]
[1764589326447,2.73464449,86521.0,86520.0,0.00078132]
[1764589326688,2.84987045,86521.0,86520.0,0.00078132]
[1764589327036,2.91193722,86521.0,86520.0,0.00078132]
[1764589327439,2.84987045,86521.0,86520.0,0.00078132]
[1764589328680,2.73464449,86521.0,86520.0,0.00078132]
[1764589328867,2.67475449,86521.0,86520.0,0.00078132]
[1764589329201,2.73464449,86521.0,86520.0,0.00078132]
[1764589329788,2.79671126,86521.0,86520.0,0.00078132]
[1764589330384,2.73464449,86521.0,86520.0,0.00078132]
[1764589330582,2.84987045,86521.0,86520.0,0.00078132]
[1764589330805,2.82663518,86521.0,86520.0,0.00078132]
[1764589332024,2.82663518,86521.0,86520.0,1e-08]
[1764589332832,2.82763518,86521.0,86520.0,1e-08]
[1764589333155,2.82863518,86521.0,86520.0,1e-08]
[1764589335157,2.89063555,86521.0,86520.0,1e-08]
[1764589335336,2.89063143,86521.0,86520.0,1e-08]
[1764589335934,2.82863518,86521.0,86520.0,1e-08]
[1764589340778,0.55417111,86516.0,86515.0,4.004e-05]
[1764589340982,2.69472926,86516.0,86515.0,4.004e-05]
[1764589341212,2.79240926,86516.0,86515.0,4.004e-05]
[1764589341454,2.82717133,86516.0,86515.0,4.004e-05]
[1764589344184,0.82717133,86516.0,86515.0,4.004e-05]
[1764589344382,2.82017133,86516.0,86515.0,4.004e-05]
[1764589345002,2.70494537,86516.0,86515.0,4.004e-05]
[1764589351486,2.60726537,86516.0,86515.0,4.004e-05]
[1764589351659,2.60666537,86516.0,86515.0,4.004e-05]
[1764589351830,2.64802933,86516.0,86515.0,4.004e-05]
[1764589354558,2.60666537,86516.0,86515.0,0.09399352]
[1764589355209,2.69402383,86516.0,86515.0,0.09399352]
[1764589355482,2.60666537,86516.0,86515.0,0.09399352]
[1764589355888,2.60666537,86516.0,86515.0,0.15570352]
[1764589355889,2.64802873,86516.0,86515.0,0.15570352]
[1764589356108,2.60666537,86516.0,86515.0,0.15570352]
[1764589356615,2.60666537,86516.0,86515.0,0.09399352]
[1764589359076,2.60666537,86516.0,86515.0,4.004e-05]
[1764589359270,2.72189133,86516.0,86515.0,4.004e-05]
[1764589359430,2.60666537,86516.0,86515.0,4.004e-05]
[1764589361498,2.42966546,86516.0,86515.0,4.004e-05]
[1764589369331,2.42966546,86516.0,86515.0,0.09399352]
[1764589370125,0.42966546,86516.0,86515.0,0.09399352]
[1764589370440,2.42966546,86516.0,86515.0,0.09399352]
[1764589370720,2.05949426,86516.0,86515.0,0.09399352]
[1764589370877,2.29066537,86516.0,86515.0,0.09399352]
[1764589373567,2.29066537,86516.0,86515.0,0.25320352]
[1764589375453,2.29066537,86516.0,86515.0,0.25620352]
[1764589375654,0.29066537,86516.0,86515.0,0.31872651]
[1764589375851,0.26593318,86516.0,86515.0,0.31872651]
[1764589376051,0.24272473,86518.0,86515.0,0.31872651]
[1764589376296,0.27747641,86518.0,86517.0,0.26791781]
[1764589376805,0.26591744,86518.0,86517.0,0.36519781]
[1764589377031,0.24271848,86520.0,86518.0,0.06252299]
[1764589377230,0.23116457,86519.0,86518.0,0.15980299]
[1764589377392,0.26591625,86519.0,86518.0,0.16712299]
[1764589377608,0.26591625,86519.0,86518.0,0.22905299]
[1764589378793,0.26591625,86519.0,86518.0,0.21899896]
[1764589379198,0.26591625,86519.0,86518.0,0.16953]
[1764589379415,0.26591625,86519.0,86518.0,0.16921]
[1764589381210,0.26591625,86519.0,86518.0,0.26316348]
[1764589381993,0.03475168,86519.0,86518.0,0.26316348]
[1764589382532,0.03475168,86519.0,86518.0,0.32568647]
[1764589382768,0.01155762,86523.0,86520.0,0.23116038]
[1764589383084,0.03475039,86521.0,86520.0,0.06252299]
[1764589383475,0.26590814,86521.0,86520.0,0.12445299]
[1764589383675,0.26590814,86521.0,86520.0,0.22173299]
[1764589383878,0.23115775,86521.0,86520.0,0.15921]
[1764589384872,0.23115775,86521.0,86520.0,0.16121]
[1764589385077,0.23115775,86521.0,86520.0,0.15921]
[1764589385474,0.23115775,86521.0,86520.0,0.06393]
[1764589385673,0.30670899,86521.0,86520.0,0.002]
[1764589385874,0.30670899,86521.0,86520.0,0.00932]
[1764589386076,0.23115775,86521.0,86520.0,0.00932]
[1764589386661,0.26590943,86521.0,86520.0,0.00932]
[1764589386862,0.39388943,86521.0,86520.0,0.002]
[1764589387072,2.41866391,86521.0,86520.0,0.09595348]
[1764589387327,2.53388987,86521.0,86520.0,0.09595348]
[1764589388289,2.43842987,86521.0,86520.0,0.09595348]
[1764589389027,2.53388987,86521.0,86520.0,0.09595348]
[1764589389434,2.41866391,86521.0,86520.0,0.09595348]
[1764589394543,2.74166391,86521.0,86520.0,0.09595348]
[1764589394757,2.77267675,86521.0,86520.0,0.09595348]
[1764589396192,2.78302727,86521.0,86520.0,0.09595348]
[1764589398019,2.74166391,86521.0,86520.0,0.07995348]
[1764589398229,2.85688987,86521.0,86520.0,0.07995348]
[1764589399082,2.23117111,86516.0,86515.0,4.004e-05]
[1764589399297,2.28786426,86516.0,86515.0,4.004e-05]
[1764589399531,2.66998559,86516.0,86515.0,4.004e-05]
[1764589399781,2.81997362,86516.0,86515.0,4.004e-05]
[1764589400732,2.82097362,86516.0,86515.0,4.004e-05]
[1764589400954,2.81997362,86516.0,86515.0,4.004e-05]
[1764589401487,2.90862197,86516.0,86515.0,4.004e-05]
[1764589402566,2.90962197,86516.0,86515.0,4.004e-05]
[1764589406301,2.95084122,86516.0,86515.0,4.004e-05]
[1764589407766,2.90962197,86516.0,86515.0,4.004e-05]
[1764589408188,0.55417912,86513.0,86510.0,0.0002]
[1764589408388,2.2312005,86505.0,86500.0,10.02974998]
[1764589408593,2.32005498,86505.0,86500.0,10.02974998]
[1764589408797,2.44563321,86505.0,86500.0,10.02974998]
[1764589408999,2.56085917,86505.0,86500.0,10.02974998]
[1764589409905,2.56085917,86505.0,86504.0,0.0039913]
[1764589411320,2.44563321,86505.0,86504.0,0.0039913]
[1764589414103,2.44563321,86505.0,86504.0,0.00424559]
[1764589416811,2.47654126,86505.0,86504.0,0.00424559]
[1764589416963,0.55421119,86501.0,86500.0,10.01399557]
[1764589417311,2.62667567,86501.0,86500.0,10.01399557]
[1764589417507,2.71748567,86501.0,86500.0,10.01399557]
[1764589417854,2.71748567,86501.0,86500.0,9.99399559]
[1764589418487,2.75224987,86501.0,86500.0,9.99399559]
[1764589419115,2.75224987,86501.0,86500.0,9.99499559]
[1764589419672,2.75224987,86501.0,86500.0,10.07494907]
[1764589420072,2.86747583,86501.0,86500.0,10.07494907]
[1764589420355,2.66143987,86501.0,86500.0,10.07494907]
[1764589420586,2.61374987,86501.0,86500.0,10.07494907]
[1764589420879,2.76863987,86501.0,86500.0,10.07494907]
[1764589421242,2.67782987,86501.0,86500.0,10.07494907]
[1764589421643,2.61374987,86501.0,86500.0,10.07494907]
[1764589421960,2.6441375,86501.0,86500.0,10.07494907]
[1764589424656,0.6441375,86501.0,86500.0,10.07494907]
[1764589425017,2.82993555,86501.0,86500.0,10.07494907]
[1764589426220,2.7990275,86501.0,86500.0,10.07494907]
[1764589426901,2.7082175,86501.0,86500.0,10.07494907]
[1764589427066,2.67782987,86501.0,86500.0,10.07494907]
[1764589428012,2.51759642,86501.0,86500.0,10.07494907]
[1764589429276,2.5486055,86501.0,86500.0,10.07494907]
[1764589430367,2.51759642,86501.0,86500.0,10.07494907]
[1764589430716,2.63282238,86501.0,86500.0,10.07494907]
[1764589431186,2.51759642,86501.0,86500.0,10.07494907]
[1764589434559,2.45351642,86501.0,86500.0,10.07494907]
[1764589435480,2.48455215,86501.0,86500.0,10.07494907]
[1764589435871,0.45351642,86501.0,86500.0,10.07494907]
[1764589436028,2.45351642,86501.0,86500.0,10.07494907]
[1764589436408,0.05953868,86501.0,86500.0,10.17323907]
[1764589436631,0.03103573,86505.0,86500.0,10.40765371]
[1764589436632,0.23120554,86504.0,86500.0,10.40765371]
[1764589436832,0.24276832,86503.0,86502.0,0.11554482]
[1764589437033,0.03633477,86503.0,86502.0,0.11554482]
[1764589437231,0.24276614,86503.0,86502.0,0.27555482]
[1764589437444,0.26754062,86503.0,86502.0,0.27555482]
[1764589437733,0.02477448,86503.0,86502.0,0.16001]
[1764589437947,0.0363345,86505.0,86502.0,0.16001]
[1764589438277,0.24276052,86505.0,86504.0,0.09455]
[1764589438570,0.267535,86505.0,86504.0,0.09455]
[1764589438773,0.267535,86505.0,86504.0,0.19284]
[1764589439129,0.12410231,86505.0,86504.0,0.19284]
[1764589439328,0.13566233,86505.0,86504.0,0.19284]
[1764589439761,0.13566233,86505.0,86504.0,0.19584]
[1764589440371,0.13566233,86505.0,86504.0,0.003]
[1764589440372,0.19898233,86505.0,86504.0,0.003]
[1764589440584,0.52198233,86505.0,86504.0,0.08295348]
[1764589440783,0.59073322,86505.0,86504.0,0.08295348]
[1764589440931,0.49342218,86505.0,86504.0,0.08295348]
[1764589441344,0.63160218,86505.0,86504.0,0.08295348]
[1764589441550,2.63160218,86505.0,86504.0,0.07995348]
[1764589441768,2.63160218,86505.0,86504.0,0.08195348]
[1764589442584,2.6316333,86505.0,86504.0,0.08195348]
[1764589443182,2.74685926,86505.0,86504.0,0.08195348]
[1764589444361,2.6316333,86505.0,86504.0,0.08195348]
[1764589444703,2.6316333,86505.0,86504.0,0.07995348]
[1764589444818,2.6316333,86505.0,86504.0,0.08095348]
[1764589445787,2.6626403,86505.0,86504.0,0.08095348]
[1764589445938,2.6316333,86505.0,86504.0,0.08095348]
[1764589446149,2.74685926,86505.0,86504.0,0.08095348]
[1764589446350,2.78819542,86505.0,86504.0,0.08095348]
[1764589446690,2.78819542,86505.0,86504.0,0.001]
[1764589447074,2.74685926,86505.0,86504.0,0.001]
[1764589447607,2.55421119,86501.0,86500.0,10.01399557]
[1764589447828,2.62587679,86501.0,86500.0,9.99399559]
[1764589448049,2.71858679,86501.0,86500.0,9.99399559]
[1764589448241,0.75335196,86501.0,86500.0,9.99399559]
[1764589448447,2.75335196,86501.0,86500.0,9.99399559]
[1764589448660,2.86857792,86501.0,86500.0,9.99399559]
[1764589449159,2.75335196,86501.0,86500.0,9.90799559]
[1764589451338,2.79467988,86501.0,86500.0,9.90799559]
[1764589451684,2.75335196,86501.0,86500.0,9.90799559]
[1764589452390,2.75635196,86501.0,86500.0,9.90799559]
[1764589452817,2.75535196,86501.0,86500.0,9.90799559]
[1764589453020,2.87057792,86501.0,86500.0,9.90799559]
[1764589453225,2.87157792,86501.0,86500.0,9.90799559]
[1764589453733,2.86957792,86501.0,86500.0,9.90799559]
[1764589454056,2.87057792,86501.0,86500.0,9.90799559]
[1764589455281,2.87057792,86501.0,86500.0,9.36537904]
[1764589455911,2.88871223,86501.0,86500.0,8.7738714]
[1764589456110,2.87057792,86501.0,86500.0,8.7738714]
[1764589456324,2.87057792,86501.0,86500.0,8.6878714]
[1764589456711,2.86957792,86501.0,86500.0,8.6878714]
[1764589457025,2.87257792,86501.0,86500.0,8.6878714]
[1764589457222,2.87257792,86501.0,86500.0,8.15426589]
[1764589457941,2.87157792,86501.0,86500.0,8.15426589]
[1764589458214,2.87257792,86501.0,86500.0,8.15426589]
[1764589458422,2.87257792,86501.0,86500.0,7.39231435]
[1764589458553,2.87257792,86501.0,86500.0,7.04266162]
[1764589458891,2.87257792,86501.0,86500.0,6.60584811]
[1764589459255,2.8907131,86501.0,86500.0,6.60584811]
[1764589459460,2.92165701,86501.0,86500.0,6.03666559]
[1764589459686,2.95323609,86501.0,86500.0,5.31109506]
[1764589459842,2.95323609,86501.0,86500.0,5.21874945]
[1764589460045,2.8907131,86501.0,86500.0,4.94728739]
[1764589460247,2.8907131,86501.0,86500.0,4.91253216]
[1764589460449,2.8907131,86501.0,86500.0,4.87777693]
[1764589460677,2.8907131,86501.0,86500.0,4.8430217]
[1764589460958,2.8867131,86501.0,86500.0,4.77351124]
[1764589461154,2.93296698,86501.0,86500.0,4.73875601]
[1764589461356,2.8927131,86501.0,86500.0,4.73875601]
[1764589462877,2.88982822,86501.0,86500.0,4.73875601]
[1764589463501,2.88982822,86501.0,86500.0,4.65275601]
[1764589464906,2.90796413,86501.0,86500.0,4.65275601]
[1764589465175,2.92043,86501.0,86500.0,4.65275601]
[1764589465526,2.90796413,86501.0,86500.0,4.65275601]
[1764589466183,2.88982895,86501.0,86500.0,4.65275601]
[1764589467350,2.88982895,86501.0,86500.0,4.10884459]
[1764589467557,2.95235194,86501.0,86500.0,3.71669269]
[1764589467835,2.95235194,86501.0,86500.0,3.42182857]
[1764589467977,2.95235194,86501.0,86500.0,3.31202523]
[1764589468187,2.95235194,86501.0,86500.0,2.68027609]
[1764589468386,2.89911987,86501.0,86500.0,1.1665177]
[1764589468594,2.83712598,86501.0,86500.0,1.04316005]
[1764589468960,2.83612598,86501.0,86500.0,0.97195412]
[1764589469159,2.83112598,86501.0,86500.0,0.93720186]
[1764589469358,2.83812598,86501.0,86500.0,0.9024496]
[1764589469610,2.83812598,86501.0,86500.0,0.32648928]
[1764589469611,2.83312598,86501.0,86500.0,0.32648928]
[1764589469818,0.23122189,86497.0,86496.0,0.00025433]
[1764589470038,0.55423793,86491.0,86490.0,0.01270069]
[1764589470253,0.57997353,86491.0,86490.0,0.01270069]
[1764589470461,2.67507353,86491.0,86490.0,0.01270069]
[1764589470669,2.68777422,86491.0,86490.0,0.01270069]
[1764589471092,2.68786515,86491.0,86490.0,0.01270069]
[1764589471728,2.68886515,86491.0,86490.0,0.01270069]
[1764589472164,2.7300677,86491.0,86490.0,0.01270069]
[1764589472386,2.81562802,86491.0,86490.0,0.01270069]
[1764589472610,2.81662802,86491.0,86490.0,0.01270069]
[1764589472826,2.81654322,86491.0,86490.0,0.01270069]
[1764589473543,2.77534067,86491.0,86490.0,0.01270069]
[1764589473958,2.77534067,86491.0,86490.0,1e-08]
[1764589474374,2.68978035,86491.0,86490.0,1e-08]
[1764589475400,2.7299822,86491.0,86490.0,1e-08]
[1764589475523,2.7289822,86491.0,86490.0,1e-08]
[1764589475856,2.68778035,86491.0,86490.0,1e-08]
[1764589476238,2.68878035,86491.0,86490.0,0.00500001]
[1764589477690,2.68978035,86491.0,86490.0,0.00500001]
[1764589478372,2.38492139,86491.0,86490.0,0.00500001]
[1764589479043,2.70792139,86491.0,86490.0,0.00500001]
[1764589479252,2.38492139,86491.0,86490.0,0.00500001]
[1764589479479,2.70792139,86491.0,86490.0,0.00500001]
[1764589480382,2.76974536,86491.0,86490.0,0.00500001]
[1764589480689,2.70792139,86491.0,86490.0,0.00100001]
[1764589482349,0.70792139,86491.0,86490.0,0.00100001]
[1764589482555,2.70792139,86491.0,86490.0,0.00100001]
[1764589482976,2.55424327,86489.0,86488.0,0.00025436]
[1764589483178,2.67113407,86489.0,86488.0,0.00025436]
[1764589483420,2.75654407,86489.0,86488.0,0.00025436]
[1764589483622,2.81003875,86489.0,86488.0,0.00025436]
[1764589484800,2.81003875,86489.0,86480.0,0.0006]
[1764589484801,2.55426467,86481.0,86480.0,0.0006]
[1764589485014,2.57983547,86481.0,86480.0,0.0006]
[1764589485220,2.67493547,86481.0,86480.0,0.0006]
[1764589485423,2.67957278,86481.0,86480.0,0.00085439]
[1764589485997,2.73406746,86481.0,86480.0,0.00385439]
[1764589486202,2.73306746,86481.0,86480.0,0.00085439]
[1764589486402,2.70742973,86481.0,86480.0,0.00185439]
[1764589486857,2.68057278,86481.0,86480.0,0.00185439]
[1764589487622,2.68157278,86481.0,86480.0,1e-08]
[1764589488155,2.73506746,86481.0,86480.0,1e-08]
[1764589488458,2.73506746,86481.0,86460.0,0.0002]
[1764589488459,2.55431014,86464.0,86460.0,0.0002]
[1764589488682,2.61166094,86464.0,86460.0,0.0002]
[1764589488885,2.70800094,86464.0,86460.0,0.0002]
[1764589489085,2.71263932,86464.0,86460.0,0.0002]
[1764589489672,2.71373021,86464.0,86463.0,0.0011]
[1764589490567,2.79618593,86464.0,86463.0,0.0011]
[1764589491008,2.79718593,86464.0,86463.0,0.0011]
[1764589491511,2.73287613,86464.0,86463.0,0.0011]
[1764589492348,2.81524666,86464.0,86463.0,0.0011]
[1764589492881,2.81524666,86464.0,86442.0,0.07221192]
[1764589492882,2.60198633,86443.0,86442.0,0.07221192]
[1764589493010,2.62670713,86443.0,86442.0,0.07221192]
[1764589493424,2.25608713,86443.0,86442.0,0.07221192]
[1764589493620,2.0247208,86443.0,86442.0,0.07221192]
[1764589493799,2.38792713,86443.0,86442.0,0.07221192]
[1764589494001,2.71092713,86443.0,86442.0,0.07221192]
[1764589494205,2.71092713,86443.0,86442.0,0.07942088]
[1764589494206,2.71192713,86443.0,86442.0,0.07942088]
[1764589494441,2.71092713,86443.0,86442.0,0.07342088]
[1764589494854,2.71192713,86443.0,86442.0,0.08142088]
[1764589495556,2.71092713,86443.0,86442.0,0.07342088]
[1764589495906,2.74671504,86443.0,86442.0,0.07942088]
[1764589496719,2.78789994,86443.0,86442.0,0.07942088]
[1764589496971,2.74671504,86443.0,86442.0,0.07942088]
[1764589498100,2.74671504,86443.0,86442.0,0.01680601]
[1764589498283,2.56094791,86443.0,86442.0,0.01680601]
[1764589498732,2.60109102,86443.0,86442.0,0.01080601]
[1764589498868,2.56094791,86443.0,86442.0,0.01380601]
[1764589499067,2.23794791,86443.0,86442.0,0.01380601]
[1764589499277,2.10610791,86443.0,86442.0,0.01380601]
[1764589499477,2.13166,86443.0,86442.0,0.01380601]
[1764589499874,2.16295367,86443.0,86442.0,0.07020601]
[1764589500063,2.13923287,86443.0,86442.0,0.07020601]
[1764589500199,2.13923287,86443.0,86442.0,0.16584601]
[1764589500200,1.81623287,86443.0,86442.0,0.16584601]
[1764589500547,0.04243003,86456.0,86442.0,0.16284601]
[1764589500548,0.24292164,86448.0,86442.0,0.16284601]
[1764589500758,2.0,86448.0,86442.0,0.16204]
[1764589500970,2.0,86448.0,86442.0,0.003]
[1764589500971,0.001,86443.0,86442.0,0.003]
[1764589501264,0.01156818,86444.0,86443.0,0.03345]
[1764589501460,0.01356831,86443.0,86440.0,0.0002]
[1764589501659,0.002,86443.0,86442.0,0.001]
[1764589502049,0.23136633,86443.0,86442.0,0.001]
[1764589502252,0.23336633,86443.0,86442.0,0.012]
[1764589502840,0.23336633,86443.0,86442.0,0.011]
[1764589503040,0.27951633,86443.0,86442.0,0.011]
[1764589503750,0.37535633,86443.0,86442.0,0.011]
[1764589503921,0.37535633,86443.0,86440.0,0.0002]
[1764589503922,0.23137168,86441.0,86440.0,0.0002]
[1764589504752,0.27752168,86441.0,86440.0,0.0002]
[1764589505173,0.10090821,86441.0,86440.0,0.08015348]
[1764589505290,2.52174821,86441.0,86440.0,0.09015348]
[1764589505497,2.54643973,86441.0,86440.0,0.09015348]
[1764589505711,2.54643973,86441.0,86440.0,0.0102]
[1764589506116,2.58122889,86441.0,86440.0,0.0112]
[1764589506752,2.58122889,86441.0,86440.0,0.0102]
[1764589507157,2.57922889,86441.0,86440.0,0.0002]
[1764589507530,2.58122889,86441.0,86440.0,0.0102]
[1764589507735,2.57922889,86441.0,86440.0,0.0002]
[1764589507963,0.55437436,86440.0,86439.0,0.04096653]
[1764589508119,2.67636588,86440.0,86439.0,0.04096653]
[1764589510831,2.67736588,86440.0,86439.0,0.04796653]
[1764589511261,2.74301854,86440.0,86439.0,0.04796653]
[1764589511497,2.74301854,86440.0,86439.0,0.04886802]
[1764589512088,2.58006588,86440.0,86439.0,0.04886802]
[1764589512579,2.72205588,86440.0,86439.0,0.04886802]
[1764589514883,0.72205588,86440.0,86439.0,0.04886802]
[1764589515090,2.72205588,86440.0,86439.0,0.03286802]
[1764589517344,2.7549239,86440.0,86439.0,0.03286802]
[1764589517950,2.81663694,86440.0,86439.0,0.03286802]
[1764589518263,2.81663694,86440.0,86422.0,0.07995348]
[1764589518264,0.01157032,86428.0,86422.0,0.07995348]
[1764589518467,0.02469152,86430.0,86428.0,0.06252299]
[1764589518675,0.24296364,86433.0,86430.0,0.06246]
[1764589518902,0.24296626,86432.0,86429.0,0.09054]
[1764589519112,0.24296626,86432.0,86431.0,0.00025462]
[1764589519477,0.24296626,86432.0,86431.0,0.06271462]
[1764589519478,0.00011787,86432.0,86431.0,0.06271462]
[1764589519684,0.00011787,86432.0,86431.0,0.15325462]
[1764589520036,0.00011787,86432.0,86431.0,0.15225462]
[1764589520217,0.00011787,86432.0,86431.0,0.15325462]
[1764589520418,0.00011787,86432.0,86431.0,0.23832729]
[1764589520635,0.00211787,86432.0,86431.0,0.24532729]
[1764589521612,0.00211787,86432.0,86431.0,0.30785028]
[1764589521807,0.00211787,86432.0,86431.0,0.53924873]
[1764589522906,0.00011787,86432.0,86431.0,0.53124873]
[1764589523131,0.00011787,86432.0,86431.0,0.53224873]
[1764589523338,0.00211787,86432.0,86431.0,0.53924873]
[1764589524364,2.0,86459.0,86450.0,0.01997196]
[1764589524567,0.00011817,86459.0,86458.0,0.09554]
[1764589524917,0.00011817,86459.0,86458.0,0.46282071]
[1764589525138,0.00011817,86459.0,86458.0,0.47992918]
[1764589525416,0.23129858,86469.0,86467.0,0.09591]
[1764589525618,0.23129858,86469.0,86468.0,0.09054]
[1764589525850,0.23129858,86469.0,86468.0,0.153]
[1764589526660,0.23129858,86469.0,86468.0,0.152]
[1764589527048,0.23229858,86469.0,86468.0,0.155]
[1764589527246,0.23229858,86469.0,86468.0,0.128]
[1764589527455,0.001,86469.0,86468.0,0.128]
[1764589527651,0.23229676,86469.0,86468.0,0.128]
[1764589529457,0.23229676,86469.0,86468.0,0.06546]
[1764589529660,2.23229676,86469.0,86468.0,0.06546]
[1764589530900,2.23229676,86469.0,86468.0,0.003]
[1764589531625,2.29542676,86469.0,86468.0,0.003]
[1764589531828,2.38232676,86469.0,86468.0,0.003]
[1764589532162,2.23229676,86469.0,86468.0,0.003]
[1764589532371,2.70532676,86469.0,86468.0,0.003]
[1764589532609,0.73000198,86469.0,86468.0,0.003]
[1764589532786,2.73000198,86469.0,86468.0,0.003]
[1764589534428,2.23132886,86457.0,86456.0,0.06234694]
[1764589534635,2.23172268,86457.0,86456.0,0.06234694]
[1764589534834,0.23134492,86451.0,86450.0,0.00840459]
[1764589535016,2.23134492,86451.0,86450.0,0.16574459]
[1764589535416,2.23134492,86451.0,86450.0,0.15734]
[1764589536248,2.23234492,86451.0,86450.0,0.16334]
[1764589536800,2.23134492,86451.0,86450.0,0.06555]
[1764589536993,2.23234492,86451.0,86450.0,0.06955]
[1764589537583,2.23234492,86451.0,86450.0,0.07055]
[1764589538055,2.23234492,86451.0,86450.0,0.06955]
[1764589538265,2.23234492,86451.0,86450.0,0.16234]
[1764589538521,2.23134492,86451.0,86450.0,0.15834]
[1764589538784,2.23134492,86451.0,86450.0,0.16034]
[1764589538785,2.23234492,86451.0,86450.0,0.16034]
[1764589539184,2.001,86451.0,86450.0,0.16034]
[1764589540220,2.23234492,86451.0,86450.0,0.16034]
[1764589547415,2.23234492,86451.0,86450.0,0.06855]
[1764589547646,2.23234492,86451.0,86450.0,0.1641]
[1764589548127,0.23234492,86451.0,86450.0,0.1641]
[1764589548343,2.23234492,86451.0,86450.0,0.1641]
[1764589549135,2.25709153,86451.0,86450.0,0.1641]
[1764589555051,2.02574661,86451.0,86450.0,0.1641]
[1764589555234,0.001,86451.0,86450.0,0.47845758]
[1764589557423,0.001,86451.0,86450.0,0.45797058]
[1764589557954,0.001,86451.0,86450.0,0.22662299]
[1764589559690,0.001,86451.0,86450.0,0.45797058]
[1764589559888,0.001,86451.0,86450.0,0.22662299]
[1764589560522,0.001,86451.0,86450.0,0.45797058]
[1764589560672,0.24289855,86456.0,86452.0,0.24290935]
[1764589560880,0.24289855,86456.0,86455.0,0.21632482]
[1764589561096,0.24289855,86456.0,86455.0,0.31187482]
[1764589561319,0.00039382,86457.0,86455.0,0.31187482]
[1764589561513,0.24289855,86456.0,86455.0,0.15407482]
[1764589561979,0.24289855,86456.0,86455.0,0.21632482]
[1764589562184,0.24789855,86456.0,86455.0,0.31187482]
[1764589562401,0.24289855,86456.0,86455.0,0.31187482]
[1764589562766,0.24789855,86456.0,86455.0,0.31187482]
[1764589563168,0.24789855,86456.0,86455.0,0.31287482]
[1764589563374,0.005,86456.0,86455.0,0.31287482]